fUSD/lending_fUSD_20251011
["ID","MTS","AMOUNT","RATE_DAILY","PERIOD"]
[390820069,1760172632880,-151.0,0.00014758,2]
[390820070,1760172632888,-151.0,0.00014758,2]
[390820071,1760172632897,-151.0,0.00014758,2]
[390820072,1760172632908,-151.0,0.00014758,2]
[390820073,1760172632917,-151.0,0.00014758,2]
[390820074,1760172632927,-157.47111614,0.00014758,2]
[390820075,1760172632938,-646.65982734,0.00014758,2]
[390820076,1760172632947,-1000.0,0.00014758,2]
[390820077,1760172632956,-1000.0,0.00014758,2]
[390820078,1760172632965,-1000.0,0.00014758,2]
[390820080,1760172632975,-178.38,0.00014758,2]
[390820081,1760172632984,-746.7060209,0.00014758,2]
[390820082,1760172632993,-500.0,0.00014758,2]
[390820083,1760172633003,-500.0,0.00014758,2]
[390820084,1760172633012,-322.6107,0.00014758,2]
[390820085,1760172633021,-150.0,0.00014767,2]
[390820086,1760172633031,-3074.0,0.00014767,2]
[390820087,1760172633040,-3405.0,0.00014767,2]
[390820088,1760172633049,-1266.0,0.00014767,2]
[390820089,1760172633059,-2048.0,0.00014767,2]
[390820090,1760172633068,-740.0,0.00014767,2]
[390820091,1760172633077,-1309.0,0.00014767,2]
[390820092,1760172633086,-571.0,0.00014767,2]
[390820093,1760172633096,-604.0,0.00014767,2]
[390820094,1760172633104,-1587.0,0.00014767,2]
[390820095,1760172633113,-1182.0,0.00014767,2]
[390820096,1760172633121,-1696.0,0.00014767,2]
[390820097,1760172633130,-2565.058,0.00014767,2]
[390820098,1760172633139,-816.0,0.00014767,2]
[390820099,1760172633148,-4120.0,0.00014767,2]
[390820100,1760172633157,-622.0,0.00014767,2]
[390820101,1760172633166,-6439.0,0.00014767,2]
[390820102,1760172633176,-752.0,0.00014788,2]
[390820103,1760172633186,-150.0,0.00014801,2]
[390820104,1760172633196,-1000.0,0.00014822,2]
[390820105,1760172633206,-752.0,0.00014838,2]
[390820106,1760172633215,-752.0,0.0001484,2]
[390820107,1760172633224,-500.0,0.00014849,2]
[390820108,1760172633234,-200.0,0.0001488,2]
[390820109,1760172633244,-1000.0,0.000149,2]
[390820110,1760172633253,-153.9,0.000149,2]
[390820111,1760172633263,-191.19094593,0.000149,2]
[390820112,1760172633272,-5000.0,0.000149,2]
[390820113,1760172633283,-2395.70023844,0.000149,2]
[390820114,1760172633293,-170.23798562,0.000149,2]
[390820115,1760172633302,-150.0,0.00014903,2]
[390820116,1760172633311,-183.0,0.00014909,2]
[390820117,1760172633321,-168.0,0.0001491,2]
[390820118,1760172633330,-611.84315851,0.00014939,2]
[390820119,1760172633339,-2748.054,0.00014939,2]
[390820120,1760172633348,-157.816,0.00014939,2]
[390820121,1760172633359,-16562.00614319,0.00014959,2]
[390820122,1760172633371,-325.82610105,0.00014959,2]
[390820123,1760172633512,-2897.16775576,0.00014959,2]
[390820124,1760172633521,-178.07638538,0.00014959,2]
[390820142,1760172638331,-150.0,0.00014767,2]
[390820143,1760172638340,-837.96851026,0.00014959,2]
[390820144,1760172638351,-325.95510436,0.00014959,2]
[390820145,1760172638361,-2239.22292345,0.00014959,2]
[390820146,1760172638373,-456.77707655,0.00014959,2]
[390820147,1760172638383,-251.36412644,0.00014959,2]
[390820148,1760172638394,-248.63587356,0.00014959,2]
[390820149,1760172638404,-500.0,0.00014959,2]
[390820150,1760172638414,-500.0,0.00014959,2]
[390820151,1760172638425,-500.0,0.00014959,2]
[390820152,1760172638434,-500.0,0.00014959,2]
[390820153,1760172638444,-500.0,0.00014959,2]
[390820154,1760172638453,-500.0,0.00014959,2]
[390820155,1760172638463,-500.0,0.00014959,2]
[390820156,1760172638472,-500.0,0.00014959,2]
[390820157,1760172638481,-500.0,0.00014959,2]
[390820158,1760172638491,-500.0,0.00014959,2]
[390820159,1760172638500,-500.0,0.00014959,2]
[390820160,1760172638510,-500.0,0.00014959,2]
[390820161,1760172638519,-500.0,0.00014959,2]
[390820162,1760172638529,-500.0,0.00014959,2]
[390820163,1760172638539,-500.0,0.00014959,2]
[390820164,1760172638548,-500.0,0.00014959,2]
[390820165,1760172638557,-500.0,0.00014959,2]
[390820166,1760172638567,-500.0,0.00014959,2]
[390820167,1760172638576,-500.0,0.00014959,2]
[390820168,1760172638585,-500.0,0.00014959,2]
[390820169,1760172638594,-500.0,0.00014959,2]
[390820170,1760172638604,-527.0,0.00014959,2]
[390820171,1760172638614,-500.0,0.00014959,2]
[390820172,1760172638623,-699.0,0.00014959,2]
[390820173,1760172638633,-500.0,0.00014959,2]
[390820174,1760172638642,-500.0,0.00014959,2]
[390820176,1760172638651,-500.0,0.00014959,2]
[390820177,1760172638661,-464.18596087,0.00014959,2]
[390820180,1760172638675,-35.81403913,0.00014959,2]
[390820182,1760172638684,-500.0,0.00014959,2]
[390820184,1760172638693,-500.0,0.00014959,2]
[390820186,1760172638703,-517.0,0.00014959,2]
[390820188,1760172638712,-500.0,0.00014973,2]
[390820189,1760172638722,-500.0,0.00014973,2]
[390820192,1760172638732,-500.0,0.00014973,2]
[390820194,1760172638741,-500.0,0.00014973,2]
[390820196,1760172638751,-500.0,0.00014973,2]
[390820198,1760172638761,-500.0,0.00014973,2]
[390820200,1760172638771,-500.0,0.00014973,2]
[390820202,1760172638781,-500.0,0.00014973,2]
[390820204,1760172638790,-500.0,0.00014973,2]
[390820255,1760172639272,-500.0,0.00014973,2]
[390820257,1760172639282,-500.0,0.00014973,2]
[390820259,1760172639291,-500.0,0.00014973,2]
[390820261,1760172639301,-500.0,0.00014973,2]
[390820264,1760172639311,-500.0,0.00014985,2]
[390820266,1760172639321,-150.0,0.0001499,2]
[390820268,1760172639330,-213.83312654,0.0001499,2]
[390820270,1760172639339,-150.0,0.0001499,2]
[390820272,1760172639348,-500.0,0.0001499,2]
[390820274,1760172639358,-150.0,0.0001499,2]
[390820276,1760172639367,-148.18455612,0.0001499,2]
[390820280,1760172639397,-1.81544388,0.0001499,2]
[390820282,1760172639407,-453.0,0.0001499,2]
[390820284,1760172639416,-500.0,0.0001499,2]
[390820286,1760172639428,-4600.17,0.0001499,2]
[390820288,1760172639437,-2024.20181333,0.0001499,2]
[390820292,1760172639461,-2575.96818667,0.0001499,2]
[390820294,1760172639471,-500.0,0.0001499,2]
[390820296,1760172639480,-500.0,0.0001499,2]
[390820298,1760172639489,-500.0,0.00014991,2]
[390820300,1760172639499,-1749.5,0.00014991,2]
[390820302,1760172639508,-300.0,0.00014999,2]
[390820304,1760172639518,-5000.0,0.00014999,2]
[390820306,1760172639528,-400.0,0.00014999,2]
[390820308,1760172639538,-900.0,0.00014999,15]
[390820310,1760172639548,-150.0,0.00014999,2]
[390820312,1760172639557,-985.0,0.00015,2]
[390820314,1760172639566,-9703.03181338,0.00015,2]
[390820401,1760172640448,-500.0,0.0001499,2]
[390820403,1760172640457,-812.66455026,0.00014999,2]
[390820405,1760172640467,-8687.33528674,0.00015,2]
[390820417,1760172640564,-500.0,0.00013984,2]
[390820418,1760172640574,-1500.0,0.00015,2]
[390820446,1760172640817,-517.83744566,0.00013984,2]
[390820448,1760172640828,-283.90816808,0.00014747,2]
[390820450,1760172640837,-1425.25438626,0.00015,2]
[390820471,1760172641031,-20707.7926632,0.00015,2]
[390820720,1760172643362,-150.0,0.0001499,2]
[390820721,1760172643371,-253.88544408,0.00015,2]
[390820730,1760172643470,-2573.1330558,0.00015,2]
[390820732,1760172643481,-1338.0,0.00015,2]
[390820738,1760172643525,-38027.33208003,0.00015,2]
[390821087,1760172646432,-51521.16866099,0.00015,2]
[390821094,1760172646592,-31296.28523659,0.00015,2]
[390823882,1760172868521,2455.33162576,0.00013,2]
[390823883,1760172868544,2455.33162576,0.00013,2]
[390823884,1760172868565,2455.33162576,0.00013,2]
[390823885,1760172868585,2455.33162576,0.00013,2]
[390823886,1760172868605,2455.33162576,0.00013,2]
[390823887,1760172868626,2455.33162576,0.00013,2]
[390823888,1760172868646,2455.33162576,0.00013,2]
[390823889,1760172868666,2455.33162576,0.00013,2]
[390823890,1760172868688,4201.32013328,0.00013,2]
[390823891,1760172868707,15000.0,0.00013,2]
[390823892,1760172868727,15000.0,0.00013,2]
[390823893,1760172868745,15000.0,0.00013,2]
[390823894,1760172868765,15000.0,0.00013,2]
[390823895,1760172868783,15000.0,0.00013,2]
[390823896,1760172868803,15000.0,0.00013,2]
[390823897,1760172868822,15000.0,0.00013,2]
[390823898,1760172868841,15000.0,0.00013,2]
[390823899,1760172868859,15000.0,0.00013,2]
[390823900,1760172868880,15000.0,0.00013,2]
[390823901,1760172868900,15000.0,0.00013,2]
[390823902,1760172868920,15000.0,0.00013,2]
[390823903,1760172868941,15000.0,0.00013,2]
[390823904,1760172868960,15000.0,0.00013,2]
[390823905,1760172868981,15000.0,0.00013,2]
[390823906,1760172869000,15000.0,0.00013,2]
[390823907,1760172869021,15000.0,0.00013,2]
[390823908,1760172869041,15000.0,0.00013,2]
[390823909,1760172869061,15000.0,0.00013,2]
[390823910,1760172869081,15000.0,0.00013,2]
[390823911,1760172869101,15000.0,0.00013,2]
[390823912,1760172869119,15000.0,0.00013,2]
[390823913,1760172869138,15000.0,0.00013,2]
[390823914,1760172869449,15000.0,0.00013,2]
[390823915,1760172869470,15000.0,0.00013,2]
[390823916,1760172869489,15000.0,0.00013,2]
[390823917,1760172869508,15000.0,0.00013,2]
[390823918,1760172869528,15000.0,0.00013,2]
[390823919,1760172869547,15000.0,0.00013,2]
[390823920,1760172869567,15000.0,0.00013,2]
[390823921,1760172869594,555023.41996396,0.00013,2]
[390823922,1760172869628,563286.95204599,0.00013,2]
[390824088,1760173270586,151.0,0.00013,2]
[390824090,1760173270644,155.59336884,0.00013,2]
[390824095,1760173271657,151.0,0.00013,2]
[390824096,1760173272547,160.18673768,0.00013,2]
[390824097,1760173275199,1500.0,0.00013698,2]
[390824115,1760173352694,200.0,0.00013608,2]
[390824182,1760173411470,-1600.0,0.00013785,2]
[390824183,1760173411490,-328.33185991,0.00013786,2]
[390824184,1760173411513,-1919.99957716,0.00013786,2]
[390824185,1760173411536,-2500.0,0.00013787,2]
[390824186,1760173411558,-1929.8547138,0.0001379,2]
[390824187,1760173411579,-872.81384913,0.00013792,2]
[390824309,1760173577539,1000.0,0.0002739,120]
[390824454,1760173678019,151.75,6.826e-05,2]
[390824455,1760173678206,151.75,7.351e-05,2]
[390824456,1760173678784,151.75,7.876e-05,2]
[390824457,1760173678942,151.75,8.401e-05,2]
[390824458,1760173679010,151.75,8.926e-05,2]
[390824459,1760173679167,151.75,9.451e-05,2]
[390824460,1760173679444,151.75,9.976e-05,2]
[390824461,1760173679633,151.75,0.00010501,2]
[390824463,1760173680578,151.75,0.00011026,2]
[390824465,1760173680654,151.75,0.00011551,2]
[390824466,1760173680768,151.75,0.00012076,2]
[390824467,1760173680846,151.75,0.00012601,2]
[390824468,1760173680905,151.75,0.00013126,2]
[390824469,1760173680968,151.75,0.00013651,2]
[390824489,1760173785458,76404.02,0.00027397,120]
[390824902,1760173837560,-1916.25,0.00013791,2]
[390824903,1760173837617,-583.75,0.00013791,2]
[390824904,1760173837627,-195.0,0.00013795,2]
[390824905,1760173837638,-250.0,0.00013799,2]
[390824906,1760173837648,-1200.0,0.00013811,2]
[390824907,1760173837658,-2500.0,0.00013812,2]
[390824908,1760173837667,-200.0,0.0001385,2]
[390824909,1760173837677,-250.0,0.0001399,2]
[390824910,1760173837686,-666.0,0.00014058,3]
[390824911,1760173837695,-300.0,0.00014127,2]
[390824912,1760173837705,-300.0,0.00014127,2]
[390824913,1760173837714,-250.0,0.00014128,2]
[390824914,1760173837725,-716.66429748,0.00014249,2]
[390824916,1760173837734,-248.71531821,0.00014249,2]
[390824918,1760173837745,-150.0,0.000143,2]
[390824920,1760173837755,-546.15,0.000143,2]
[390824922,1760173837764,-175.87,0.00014308,2]
[390824924,1760173837774,-205.17,0.00014381,2]
[390824926,1760173837784,-150.0,0.00014478,2]
[390824928,1760173837793,-816.0,0.00014479,2]
[390824930,1760173837803,-322.6107,0.00014479,2]
[390824932,1760173837812,-500.0,0.00014479,2]
[390824934,1760173837822,-470.5785721,0.00014479,2]
[390824936,1760173837831,-300.0,0.00014479,2]
[390824938,1760173837841,-1519.14505501,0.00014479,2]
[390824940,1760173837850,-300.0,0.00014479,2]
[390824942,1760173837860,-300.0,0.00014479,2]
[390824944,1760173837870,-807.08455211,0.00014479,2]
[390824946,1760173837879,-1000.0,0.00014479,2]
[390824948,1760173837889,-200.0,0.00014479,2]
[390824950,1760173837899,-999.84382614,0.00014479,2]
[390824955,1760173837918,-0.15617386,0.00014479,2]
[390824957,1760173837927,-1000.0,0.00014479,2]
[390824959,1760173837936,-646.65982734,0.00014479,2]
[390824961,1760173837946,-3506.94584221,0.00014488,2]
[390824965,1760173837977,-613.05415779,0.00014488,2]
[390824967,1760173837986,-622.0,0.00014488,2]
[390824969,1760173837996,-6439.0,0.00014488,2]
[390824971,1760173838006,-825.14,0.00014536,2]
[390824973,1760173838016,-413.13,0.00014561,2]
[390824975,1760173838025,-461.0,0.00014569,2]
[390824977,1760173838034,-500.0,0.00014574,2]
[390824979,1760173838043,-500.0,0.00014574,2]
[390824981,1760173838053,-500.0,0.00014574,2]
[390824984,1760173838064,-328.39839749,0.00014574,2]
[390824986,1760173838074,-724.0,0.00014575,2]
[390824988,1760173838084,-1425.0,0.00014622,2]
[390824990,1760173838094,-2156.13021456,0.00014625,2]
[390824992,1760173838103,-1425.0,0.00014659,2]
[390824994,1760173838113,-150.0,0.00014692,2]
[390824996,1760173838122,-5888.0,0.00014697,2]
[390824998,1760173838131,-42408.37119132,0.000147,2]
[390825148,1760173839639,-11183.0,0.000147,2]
[390825160,1760173839745,-2237.6,0.000147,2]
[390825173,1760173839852,-308.46510749,0.000147,2]
[390825221,1760173840283,-50.57386917,0.000147,2]
[390825243,1760173840485,250.0,0.00013662,7]
[390825496,1760173842755,-175.87,0.000143,2]
[390825498,1760173842764,-89.11886801,0.00014488,2]
[390825869,1760173846867,-1118.2,0.00014488,2]
[390825873,1760173846893,-388.3077322,0.00014488,2]
[390825878,1760173846931,-241.66739979,0.00014488,2]
[390825880,1760173846940,-2565.058,0.00014488,2]
[390825882,1760173846949,-18826.16460021,0.000147,2]
[390825884,1760173846961,-815.42599998,0.000147,2]
[390830514,1760174304630,878.45,0.00013699,2]
[390830517,1760174915979,360.557,0.0002739,120]
[390830558,1760174998446,2751.0,0.00013699,2]
[390830612,1760175032498,-243.29,0.00013745,2]
[390830614,1760175032507,-300.0,0.00013746,2]
[390830616,1760175032516,-549.97741146,0.00013746,2]
[390830618,1760175032525,-250.0,0.00013747,2]
[390830620,1760175032534,-195.0,0.00013747,2]
[390830622,1760175032543,-182.46527026,0.00013748,2]
[390830624,1760175032552,-195.0,0.00013749,2]
[390830626,1760175032564,-300.0,0.00013752,2]
[390830628,1760175032575,-1200.0,0.00013752,2]
[390830630,1760175032584,-2000.0,0.00013753,2]
[390830632,1760175032593,-2500.0,0.00013753,2]
[390830634,1760175032602,-195.0,0.0001376,2]
[390830636,1760175032613,-2500.0,0.00013767,2]
[390830638,1760175032622,-2033.96635013,0.00013767,2]
[390830640,1760175032634,-466.03364987,0.00013767,2]
[390830642,1760175032647,-150.0,0.00013775,2]
[390830644,1760175032657,-200.37,0.00013778,3]
[390830646,1760175032666,-2599.61,0.00013809,2]
[390830648,1760175032675,-3261.49,0.00013815,2]
[390830650,1760175032685,-500.0,0.00013828,2]
[390830652,1760175032694,-794.1,0.00013831,2]
[390830654,1760175032703,-166.66,0.00014205,2]
[390830656,1760175032711,-248.71531821,0.00014225,2]
[390830658,1760175032720,-207.39,0.00014303,2]
[390830660,1760175032729,-3074.0,0.00014532,2]
[390830662,1760175032738,-646.65982734,0.0001457,2]
[390830664,1760175032748,-200.0,0.0001457,2]
[390830666,1760175032757,-322.6107,0.0001457,2]
[390830668,1760175032766,-150.0,0.00014578,2]
[390830670,1760175032775,-571.0,0.00014579,2]
[390830672,1760175032784,-1587.0,0.00014579,2]
[390830674,1760175032793,-604.0,0.00014579,2]
[390830676,1760175032803,-1309.0,0.00014579,2]
[390830678,1760175032812,-816.0,0.00014579,2]
[390830680,1760175032822,-1049.54552417,0.00014579,2]
[390831199,1760175037865,-1494.45447583,0.00014579,2]
[390831201,1760175037875,-901.0,0.00014579,2]
[390831203,1760175037884,-54.74666309,0.00014579,2]
[390831219,1760175038025,-1127.25333691,0.00014579,2]
[390831221,1760175038036,-4120.0,0.00014579,2]
[390831223,1760175038046,-2048.0,0.00014579,2]
[390831225,1760175038056,-1266.0,0.00014579,2]
[390831227,1760175038067,-740.0,0.00014579,2]
[390831229,1760175038077,-175.87,0.000146,2]
[390831231,1760175038087,-175.87,0.000146,2]
[390831233,1760175038097,-351.58,0.000146,2]
[390831235,1760175038108,-1630.07,0.000146,2]
[390831237,1760175038118,-413.29,0.000146,2]
[390831238,1760175038127,-335.68,0.000146,2]
[390831240,1760175038137,-825.54,0.000146,2]
[390831243,1760175038147,-335.58,0.000146,2]
[390831245,1760175038157,-413.23,0.000146,2]
[390831247,1760175038167,-150.0,0.00014611,2]
[390831249,1760175038177,-21833.5817211,0.00014642,2]
[390831251,1760175038187,-2049.9888443,0.00014642,2]
[390831253,1760175038197,-1285.7023376,0.00014642,2]
[390831255,1760175038208,-80000.7454272,0.00014642,2]
[390831257,1760175038218,-152.90941915,0.00014685,2]
[390831259,1760175038228,-7191.46618433,0.000147,2]
[390831261,1760175038237,-56622.73258922,0.000147,2]
[390831263,1760175038250,-4497.12039638,0.000147,2]
[390831265,1760175038260,-903.9018,0.000147,2]
[390831267,1760175038270,-151.70844612,0.000147,2]
[390831269,1760175038280,-151.0,0.000147,2]
[390831271,1760175038290,-151.0,0.000147,2]
[390831273,1760175038299,-461.0,0.0001472,2]
[390831275,1760175038309,-614.0,0.00014729,2]
[390831277,1760175038320,-1000.0,0.0001473,2]
[390831279,1760175038330,-1000.0,0.00014731,2]
[390831281,1760175038339,-1000.0,0.00014732,2]
[390831283,1760175038348,-2265.92236532,0.00014739,2]
[390831285,1760175038358,-1425.0,0.00014741,2]
[390831287,1760175038368,-1000.0,0.00014753,2]
[390831337,1760175038825,-2265.92236525,0.00014757,2]
[390831339,1760175038835,-1425.0,0.00014757,2]
[390831341,1760175038845,-447.07332217,0.00014762,2]
[390831343,1760175038854,-1000.0,0.00014762,2]
[390831345,1760175038864,-1000.0,0.00014763,2]
[390831347,1760175038874,-1000.0,0.00014766,2]
[390831349,1760175038884,-200.0,0.00014767,2]
[390831351,1760175038893,-150.0,0.00014767,2]
[390831353,1760175038903,-150.0,0.00014767,2]
[390831355,1760175038912,-193.721,0.00014767,2]
[390831357,1760175038922,-150.0,0.00014767,2]
[390831359,1760175038932,-215.509,0.00014767,2]
[390831362,1760175038943,-150.0,0.00014767,2]
[390831364,1760175038953,-150.0,0.00014767,2]
[390831366,1760175038963,-150.0,0.00014767,2]
[390831368,1760175038972,-1425.0,0.0001477,2]
[390831370,1760175038982,-351.11,0.0001477,2]
[390831372,1760175038992,-2265.92236525,0.00014775,2]
[390831374,1760175039005,-1000.0,0.00014775,2]
[390831376,1760175039015,-1425.0,0.00014779,2]
[390831378,1760175039025,-1425.0,0.00014789,2]
[390831380,1760175039035,-1000.0,0.00014791,2]
[390831382,1760175039045,-2265.92236525,0.00014793,2]
[390831384,1760175039054,-1000.0,0.00014799,2]
[390831386,1760175039063,-1000.0,0.00014799,2]
[390831388,1760175039073,-413.23,0.000148,2]
[390831390,1760175039082,-1626.33,0.000148,2]
[390831392,1760175039092,-150.0,0.000148,2]
[390831394,1760175039102,-1000.0,0.00014805,2]
[390831396,1760175039111,-2265.92236525,0.00014811,2]
[390831398,1760175039122,-614.0,0.00014819,2]
[390831400,1760175039131,-500.0,0.00014819,2]
[390831402,1760175039142,-500.0,0.00014819,2]
[390831404,1760175039151,-500.0,0.00014819,2]
[390831406,1760175039161,-500.0,0.00014819,2]
[390831408,1760175039171,-500.0,0.00014819,2]
[390831410,1760175039181,-500.0,0.00014819,2]
[390831412,1760175039190,-500.0,0.00014819,2]
[390831413,1760175039199,-919.0,0.00014819,2]
[390831414,1760175039208,-500.0,0.00014819,2]
[390831415,1760175039218,-500.0,0.00014819,2]
[390831416,1760175039229,-500.0,0.00014819,2]
[390831417,1760175039239,-500.0,0.00014819,2]
[390831418,1760175039255,-500.0,0.00014819,2]
[390831419,1760175039266,-500.0,0.00014819,2]
[390831420,1760175039276,-500.0,0.00014819,2]
[390831421,1760175039286,-500.0,0.00014819,2]
[390831422,1760175039296,-500.0,0.00014819,2]
[390831424,1760175039306,-500.0,0.00014819,2]
[390831426,1760175039316,-500.0,0.00014819,2]
[390831428,1760175039326,-500.0,0.00014819,2]
[390831430,1760175039335,-500.0,0.00014819,2]
[390831432,1760175039344,-500.0,0.00014819,2]
[390831433,1760175039353,-500.0,0.00014819,2]
[390831435,1760175039363,-500.0,0.00014819,2]
[390831436,1760175039372,-500.0,0.00014819,2]
[390831437,1760175039380,-500.0,0.00014819,2]
[390831438,1760175039389,-1000.0,0.00014819,2]
[390831439,1760175039398,-1668.8,0.00014819,2]
[390831440,1760175039407,-1000.0,0.00014826,2]
[390831441,1760175039416,-483.79255888,0.00014826,2]
[390831442,1760175039426,-2265.92236525,0.00014828,2]
[390831443,1760175039435,-1000.0,0.00014829,2]
[390831444,1760175039444,-150.0,0.00014836,2]
[390831445,1760175039454,-2939.2383,0.00014839,2]
[390831446,1760175039463,-778.7915,0.00014839,2]
[390831447,1760175039472,-1000.0,0.00014839,2]
[390831448,1760175039481,-973.9595368,0.00014839,2]
[390831449,1760175039490,-1000.0,0.00014843,2]
[390831450,1760175039502,-973.95953677,0.00014846,2]
[390831451,1760175039512,-2265.92236525,0.00014846,2]
[390831452,1760175039521,-1000.0,0.00014849,2]
[390831454,1760175039530,-973.95953677,0.00014853,2]
[390831456,1760175039539,-150.0,0.00014853,2]
[390831458,1760175039548,-973.95953677,0.00014859,2]
[390831460,1760175039558,-2265.92236525,0.00014864,2]
[390831462,1760175039568,-973.95953677,0.00014866,2]
[390831464,1760175039579,-973.95953677,0.00014873,2]
[390831466,1760175039588,-1000.0,0.00014873,2]
[390831468,1760175039597,-973.95953677,0.0001488,2]
[390831470,1760175039607,-200.0,0.0001488,2]
[390831472,1760175039616,-1000.0,0.0001488,2]
[390831474,1760175039627,-2265.92236525,0.00014882,2]
[390831476,1760175039637,-973.95953677,0.00014886,2]
[390831479,1760175039648,-1000.0,0.00014887,2]
[390831481,1760175039657,-964.30591853,0.00014888,2]
[390831483,1760175039667,-973.95953677,0.00014893,2]
[390831485,1760175039676,-1000.0,0.00014894,2]
[390831487,1760175039685,-1000.0,0.00014897,2]
[390831488,1760175039695,-1425.0,0.00014898,2]
[390831490,1760175039704,-1000.0,0.000149,3]
[390831492,1760175039715,-1000.0,0.000149,3]
[390831494,1760175039725,-175.87,0.000149,2]
[390831497,1760175039734,-5000.0,0.000149,2]
[390831499,1760175039745,-191.19094593,0.000149,2]
[390831501,1760175039755,-158.397,0.000149,2]
[390831503,1760175039764,-2198.443,0.000149,2]
[390831505,1760175039773,-2265.92236525,0.000149,2]
[390831507,1760175039783,-973.95953677,0.000149,2]
[390831509,1760175039792,-399.60304083,0.000149,2]
[390831511,1760175039801,-170.23798562,0.000149,2]
[390831513,1760175039811,-1425.0,0.00014901,2]
[390831515,1760175039820,-1451.23097198,0.00014901,2]
[390831518,1760175039831,-1000.0,0.00014926,2]
[390831520,1760175039842,-1425.0,0.00014934,2]
[390831522,1760175039853,-199119.763218,0.00014939,2]
[390831524,1760175039864,-9882.7039232,0.00014939,2]
[390831526,1760175039875,-1000.0,0.00014948,2]
[390831528,1760175039886,-323.62,0.00014949,2]
[390831530,1760175039896,-150.0,0.0001495,2]
[390831532,1760175039905,-151.33905994,0.00014954,2]
[390831534,1760175039916,-151.0,0.00014957,2]
[390831536,1760175039925,-2499.0,0.00014959,2]
[390831538,1760175039935,-509727.36246828,0.0001496,2]
[390831540,1760175039945,-1425.0,0.0001496,2]
[390831542,1760175039954,-1425.0,0.00014962,2]
[390831544,1760175039964,-1425.0,0.0001497,2]
[390831546,1760175039973,-150.0,0.00014972,2]
[390831548,1760175039983,-590.0,0.00014972,2]
[390831550,1760175039992,-500.0,0.00014973,2]
[390831552,1760175040006,-500.0,0.00014973,2]
[390831554,1760175040016,-500.0,0.00014973,2]
[390831556,1760175040025,-500.0,0.00014973,2]
[390831558,1760175040035,-570.95181044,0.00014973,2]
[390831560,1760175040044,-501.73894675,0.00014973,2]
[390831562,1760175040054,-500.0,0.00014973,2]
[390831564,1760175040063,-500.0,0.00014973,2]
[390831566,1760175040072,-500.0,0.00014973,2]
[390831568,1760175040081,-500.0,0.00014973,2]
[390831570,1760175040091,-500.0,0.00014973,2]
[390831572,1760175040100,-500.0,0.00014973,2]
[390831574,1760175040109,-500.0,0.00014973,2]
[390831576,1760175040119,-632.10678544,0.00014973,2]
[390831578,1760175040129,-471.79906783,0.00014973,2]
[390831580,1760175040139,-500.59683785,0.00014973,2]
[390831582,1760175040148,-168.0,0.0001498,2]
[390831584,1760175040157,-233.50371344,0.0001499,2]
[390831586,1760175040167,-233.50371344,0.0001499,2]
[390831588,1760175040176,-233.50371344,0.0001499,2]
[390831590,1760175040186,-500.0,0.00014991,2]
[390831592,1760175040195,-828.0,0.00014991,2]
[390831594,1760175040206,-150.0,0.00014991,2]
[390831596,1760175040215,-150.0,0.00014991,2]